Cogmind - Beta 17 @@@ ROGUE MODE // 2026.07.15 @ 07:33:40 // Winter2019/RPGLIKE Player: Gallgagger Result: Self-destructed Performance ------------- Evolutions (1) 500 Regions Visited (6) 1200 Robots Destroyed (103) 515 Value Destroyed (3097) 3097 Prototype IDs (25) 500 Alien Tech Used (0) 0 Bonus (708) 708 TOTAL SCORE: 6520 Bonus ------- High Alert Combat Kills 653 Follower Combat Kills 156 Aligned with FarCom 300 Friendly Fire -401 Cogmind --------- Core Integrity 596/600 Matter 276/300 Energy 160/160 System Corruption 0% Temperature Cool (0) Movement Flying (178) Ox2 Location -8/Mines Parts ------- > --- POWER (1) -------- Light Nuclear Core > --- PROPULSION (4) --- Flight Unit Flight Unit Improved VTOL Module Improved VTOL Module > --- UTILITY (7) ------ Targeting Computer Army-in-a-Box (0/30) > --- WEAPON (2) ------- Beamcaster (fused) Minigun > --- INVENTORY (4) ---- Improved Trap Extractor (6/6 Shock) Decoy Drone Bay (16/16) Blade Trap Peak State ------------ > --- POWER ------------ Light Nuclear Core > --- PROPULSION ------- Flight Unit Flight Unit Improved VTOL Module Improved VTOL Module > --- UTILITY ---------- Targeting Computer Army-in-a-Box > --- WEAPON ----------- Beamcaster Minigun > --- INVENTORY -------- Improved Trap Extractor Decoy Drone Bay Blade Trap [Rating: 77] Favorites ----------- Power Light Nuclear Core Engine Ion Engine Power Core Light Nuclear Core Propulsion Flight Unit Flight Unit Flight Unit Utility Targeting Computer Device Improved Trap Extractor Processor Targeting Computer Protection Medium Armor Plating Weapon Beamcaster Energy Gun Beamcaster Ballistic Gun Minigun Special Melee Weapon Datajack Build | -11 -10 -10 -9 -9 -9 -8 ------- Run | Yrd Mat Min Mat Min Exi Min Slots Evolved 10 | . 4 2 3 . 1 . Power . | . . . . . . . Propulsion 3 | . 1 1 1 . . . Utility 6 | . 2 1 2 . 1 . Weapon 1 | . 1 . . . . . Parts Attached 30 | . 11 10 7 1 1 . Power 2 | . 1 . 1 . . . Engine 1 | . 1 . . . . . Core 1 | . . . 1 . . . Reactor . | . . . . . . . Propulsion 11 | . 3 4 4 . . . Treads . | . . . . . . . Leg . | . . . . . . . Wheel . | . . . . . . . Hover . | . . . . . . . Flight 11 | . 3 4 4 . . . Utility 11 | . 5 2 2 1 1 . Device 4 | . . 2 1 . 1 . Storage . | . . . . . . . Processor 2 | . 2 . . . . . Hackware . | . . . . . . . Protection 5 | . 3 . 1 1 . . Artifact . | . . . . . . . Weapon 6 | . 2 4 . . . . Energy Gun 4 | . 2 2 . . . . Energy Cannon . | . . . . . . . Ballistic Gun 1 | . . 1 . . . . Ballistic Cannon . | . . . . . . . Launcher . | . . . . . . . Special Weapon . | . . . . . . . Impact Weapon . | . . . . . . . Slashing Weapon . | . . . . . . . Piercing Weapon . | . . . . . . . Special Melee Weapon 1 | . . 1 . . . . Unidentified Prototypes 2 | . . 1 1 . . . Parts Lost 1 | . 1 . . . . . Power . | . . . . . . . Propulsion . | . . . . . . . Utility 1 | . 1 . . . . . Weapon . | . . . . . . . Highest Loss Streak 1 | . 1 . . . . . To Critical Strikes . | . . . . . . . Average Backups 1 | . . 1 2 2 2 2 Power . | . . . . . . . Propulsion . | . . . . . . . Utility 1 | . . 1 1 1 1 2 Weapon . | . . . . . . . Tool/Special . | . . . . . . . Unused Backups . | . . . . . . . Power . | . . . . . . . Propulsion . | . . . . . . . Utility . | . . . . . . . Weapon . | . . . . . . . Tool/Special . | . . . . . . . Average Slot Usage (%) 84 | . 85 98 96 93 65 64 Engine 3 | . 8 10 2 . . . Core 4 | . . . 5 7 7 7 Flight 26 | . 23 24 26 30 28 28 Device 9 | . . 8 16 15 6 7 Processor 14 | . 17 21 17 15 7 7 Protection 6 | . 10 10 8 8 1 . Energy Gun 11 | . 23 20 8 7 7 7 Ballistic Gun 5 | . . . 8 7 7 7 Peak Build Rating 77 | . 8 25 33 34 77 77 Average Rating 39 | . 6 16 30 33 71 77 On Entrance 24 | . . 8 20 33 34 77 Avg Prop Armor Cover (%) 1 | . . . 1 . . . Naked Turns 35 | . 35 . . . . . Heaviest Build 93 | . 12 17 24 27 93 93 Greatest Support 33 | 3 13 22 33 33 33 33 Greatest Overweight (x) 2 | . . . . . 2 2 Average Overweight (x) . | . . . . . 1 2 Largest Inventory Capacity 4 | . 2 4 4 4 4 4 Average Capacity 3 | . 1 3 4 4 4 4 Most Carried 4 | . 1 4 4 4 4 4 Average Carried 3 | . . 2 3 4 4 4 Final Capacity 4 | . 2 4 4 4 4 4 Final Carried 4 | . . 4 4 4 4 4 Class Distribution -------------------- 30% | Trapper-Mutant 22% | Trapper-Sprinter 15% | Scavenger-Mutant 14% | Sprinter 13% | Mutant Dominant Class ---------------- Mutant | -10/Materials Scavenger-Mutant | -10/Mines Sprinter | -9/Materials Trapper-Sprinter | -9/Mines Trapper-Mutant | -9/Exiles Trapper-Mutant | -8/Mines Resources | -11 -10 -10 -9 -9 -9 -8 ----------- Run | Yrd Mat Min Mat Min Exi Min Matter Collected 1305 | 200 162 133 734 76 . . Remotely . | . . . . . . . Salvage Created 3249 | . 1114 295 1598 242 . . Parts 190 | . 43 24 118 5 . . Haulers Intercepted 4 | . 1 . 3 . . . Recyclers Shooed . | . . . . . . . Parts Field Recycled . | . . . . . . . Retrieved Matter . | . . . . . . . Parts Self-Destructed . | . . . . . . . Prevented . | . . . . . . . Parts Restored . | . . . . . . . Kills | -11 -10 -10 -9 -9 -9 -8 ------- Run | Yrd Mat Min Mat Min Exi Min Combat Hostiles Destroyed 96 | . 32 9 51 4 . . Guns 92 | . 28 9 51 4 . . Classes Destroyed 7 | . 3 . 3 1 . . Builder 1 | . . . 1 . . . Hauler 4 | . 1 . 3 . . . Swarmer 22 | . 9 9 4 . . . Grunt 60 | . 23 . 34 3 . . Brawler 3 | . . . 3 . . . Duelist 1 | . . . . 1 . . Sentry 10 | . . . 10 . . . Thug 2 | . . 2 . . . . Best Kill Streak 8 | . 6 6 8 3 . . Combat Bots Only 8 | . 6 6 8 3 . . Max Kills in Single Turn 2 | . 2 2 2 1 . . Gunslinging 1 | . 1 1 1 . . . Exploded . | . . . . . . . Melee . | . . . . . . . Uniques/NPCs Destroyed . | . . . . . . . Combat | -11 -10 -10 -9 -9 -9 -8 -------- Run | Yrd Mat Min Mat Min Exi Min Hostile Shots Fired 375 | . 132 39 186 18 . . Missed 152 | . 46 13 85 8 . . Hits 223 | . 86 26 101 10 . . Melee 6 | . . . 4 2 . . Projectile 217 | . 86 26 97 8 . . Critical Strikes 2 | . . . 2 . . . Damage Taken 2610 | . 883 214 1366 147 . . Core 1963 | . 657 173 1020 113 . . Absorbed by Shields . | . . . . . . . Redirected to Core 1413 | . 444 94 784 91 . . Redirected to Shielding 26 | . 10 8 8 . . . Core Remaining (%) 94 | 100 . 88 . . . . Volleys Fired 274 | . 89 30 140 14 1 . Largest 2 | . 2 2 2 2 2 . Hottest 125 | . 100 125 100 100 100 . Shots Fired 547 | . 177 61 279 28 2 . Gun 547 | . 177 61 279 28 2 . Cannon . | . . . . . . . Launcher . | . . . . . . . Special . | . . . . . . . Kinetic 154 | . . . 139 14 1 . Thermal 393 | . 177 61 140 14 1 . Explosive . | . . . . . . . Electromagnetic . | . . . . . . . Robot Hit Streak 31 | . 14 7 30 31 . . Robot Miss Streak 4 | . 2 4 4 2 . . Penetration Max . | . . . . . . . Secondary Targets 14 | . 4 2 8 . . . Max Gunslinging Chain 1 | . 1 1 1 . . . Shots Hit Robots 393 | . 131 34 204 24 . . Core Hits 142 | . 54 16 65 7 . . Critical Kills . | . . . . . . . Critical Parts Destroyed . | . . . . . . . Critical Strikes 28 | . 11 4 13 . . . Burn 28 | . 11 4 13 . . . Melee Attacks 1 | . . 1 . . . . Impact . | . . . . . . . Slashing . | . . . . . . . Piercing . | . . . . . . . Sneak Attacks 1 | . . 1 . . . . Combat Hostiles . | . . . . . . . Follow-up Attacks . | . . . . . . . Damage Inflicted 6610 | . 1636 551 3959 464 . . Guns 6610 | . 1636 551 3959 464 . . Cannons . | . . . . . . . Explosions . | . . . . . . . Melee . | . . . . . . . Ramming . | . . . . . . . Kinetic 1789 | . . . 1597 192 . . Thermal 4821 | . 1636 551 2362 272 . . Explosive . | . . . . . . . Electromagnetic . | . . . . . . . Impact . | . . . . . . . Slashing . | . . . . . . . Piercing . | . . . . . . . Highest Corruption 4 | . 4 4 . . . . Average Corruption 3 | . 3 4 . . . . Corruption Purged . | . . . . . . . Corruption Blocked . | . . . . . . . Effects 33 | . 18 15 . . . . Message Errors 7 | . 2 5 . . . . Matter Fused 9 | . 6 3 . . . . Heat Flow Errors 3 | . 1 2 . . . . Energy Discharges 4 | . 3 1 . . . . Parts Fused 2 | . 1 1 . . . . Data Loss (minor) 4 | . 3 1 . . . . Data Loss (major) 1 | . 1 . . . . . Misfires 1 | . . 1 . . . . Alerts 1 | . . 1 . . . . Weapon Failures 1 | . 1 . . . . . Overload Shots . | . . . . . . . Overflow Damage . | . . . . . . . Projectiles . | . . . . . . . Explosions . | . . . . . . . Melee . | . . . . . . . Knockbacks . | . . . . . . . Impact . | . . . . . . . Kinetic . | . . . . . . . Secondary . | . . . . . . . Self-Inflicted Damage . | . . . . . . . Shots . | . . . . . . . Rammed . | . . . . . . . Targets Rammed . | . . . . . . . Kicked . | . . . . . . . Crushed . | . . . . . . . Highest Temperature 276 | . 276 171 31 22 . . Average Temperature 26 | . 103 82 6 8 . . Received Heat Transfer 1035 | . 378 . 609 48 . . Siege Activations . | . . . . . . . Martial Activations . | . . . . . . . Shielding Activations . | . . . . . . . Robots Disrupted . | . . . . . . . Combat Hostiles . | . . . . . . . Robots Corrupted . | . . . . . . . Combat Hostiles . | . . . . . . . Parts Fried . | . . . . . . . Impact Corruptions . | . . . . . . . Robots Melted 4 | . 4 . . . . . Combat Hostiles 4 | . 4 . . . . . Parts Melted 25 | . 12 2 11 . . . Heat Transferred 12839 | . 5661 1554 5143 481 . . Parts Sabotaged . | . . . . . . . Parts Stolen . | . . . . . . . Parts Stripped . | . . . . . . . Power Chain Reactions . | . . . . . . . Alert | -11 -10 -10 -9 -9 -9 -8 ------- Run | Yrd Mat Min Mat Min Exi Min Maximum Alert Level 4 | . 2 1 4 2 . . Low Security (%) 36 | 100 26 49 11 . . 100 Level 1 23 | . 19 50 11 73 . . Level 2 29 | . 54 . 48 26 . . Level 3 7 | . . . 19 . . . Level 4 3 | . . . 8 . . . Level 5 . | . . . . . . . High Security . | . . . . . . . Max Security . | . . . . . . . Sterilizations 1 | . . . 1 . . . Peak Influence 1252 | . 556 336 1252 486 . 140 Initial 486 | . . 214 56 486 . . Average 344 | . 332 211 581 352 . 31 Influence Increases 3541 | . 919 336 1866 130 . 290 Destroy 0b10 Robot/C 2280 | . 640 240 1120 100 . 180 Destroy 0b10 Robot/NC 50 | . 5 . 40 . . 5 Destroy Leader 572 | . 162 40 320 20 . 30 Allied During Kill 131 | . . 26 25 10 . 70 Successful Hack 12 | . . . 12 . . . Select Force Hacks 270 | . 80 . 190 . . . Destroy Structure 16 | . 2 . 9 . . 5 Partial Spotted 30 | . . . 30 . . . Lose Combat Pursuer 180 | . 30 30 120 . . . Influence Decreases 3541 | . 368 741 764 1072 306 290 Entered New Map 1495 | . . 337 90 762 306 . Time Decay 1930 | . 358 404 628 310 . 230 Lost Part 10 | . 10 . . . . . Lost Ally 106 | . . . 46 . . 60 Squads Dispatched 27 | . 12 . 15 . . . Investigation 23 | . 10 . 13 . . . Extermination . | . . . . . . . Reinforcement 4 | . 2 . 2 . . . Assault . | . . . . . . . Garrison . | . . . . . . . Intercept . | . . . . . . . Searches Triggered . | . . . . . . . Construction Impeded . | . . . . . . . Haulers Reinforced . | . . . . . . . Active Scanning Responses . | . . . . . . . Cargo Convoy Interrupts . | . . . . . . . Stealth | -11 -10 -10 -9 -9 -9 -8 --------- Run | Yrd Mat Min Mat Min Exi Min Distress Signals 7 | . 4 . 3 . . . Communications Jammed . | . . . . . . . Distress Signals . | . . . . . . . Times Spotted 143 | . 43 11 83 6 . . Peak Tracking Total 9 | . 7 3 9 3 9 . Tactical Retreats 6 | . 1 1 4 . . . Traps | -11 -10 -10 -9 -9 -9 -8 ------- Run | Yrd Mat Min Mat Min Exi Min Traps Triggered 4 | . 4 . . . . . Indirectly . | . . . . . . . Trap Hack Attempts 96 | . . 34 62 . . . Triggered . | . . . . . . . Disarmed 1 | . . . 1 . . . Reprogrammed 11 | . . 5 6 . . . Reused . | . . . . . . . Traps Extracted 8 | . . 2 6 . . . Installed . | . . . . . . . Triggered . | . . . . . . . Most Traps Carried 7 | . . 1 7 7 7 7 Machines | -11 -10 -10 -9 -9 -9 -8 ---------- Run | Yrd Mat Min Mat Min Exi Min Machines Disabled 1 | . . . . . 1 . Max in Single Turn 1 | . . . . . 1 . Machines Repaired . | . . . . . . . Machines Dismantled . | . . . . . . . Machines Sabotaged 3 | . 1 . 2 . . . Overloaded Fab Kills . | . . . . . . . Hacking | -11 -10 -10 -9 -9 -9 -8 --------- Run | Yrd Mat Min Mat Min Exi Min Machines Accessed 28 | . 9 2 16 . 1 . Terminals 16 | . 6 . 10 . . . Fabricators . | . . . . . . . Repair Stations 3 | . 1 . 2 . . . Recycling Units 4 | . 2 . 2 . . . Scanalyzers 2 | . . . 2 . . . Garrison Access . | . . . . . . . Total Hacks 51 | . 13 2 35 . 1 . Successful 31 | . 7 2 21 . 1 . Failed 20 | . 6 . 14 . . . Catastrophic 4 | . 2 . 2 . . . Database Lockouts . | . . . . . . . Manual 49 | . 11 . 37 . 1 . Terminals 37 | . 8 . 29 . . . Fabricators . | . . . . . . . Repair Stations 4 | . 2 . 2 . . . Recycling Units 5 | . 3 . 2 . . . Scanalyzers 2 | . . . 2 . . . Garrison Access . | . . . . . . . Terminal Hacks 7 | . . 2 4 . 1 . Open Door 2 | . . 2 . . . . Locate Traps 4 | . . . 4 . . . Proto ID Catalog 1 | . . . . . 1 . Fabricator Hacks . | . . . . . . . Repair Station Hacks . | . . . . . . . Recycling Unit Hacks . | . . . . . . . Scanalyzer . | . . . . . . . Garrison Access Hacks . | . . . . . . . Unauthorized Hacks 24 | . 7 . 17 . . . Terminals 18 | . 6 . 12 . . . Assimilate 1 | . . . 1 . . . Botnet 4 | . . . 4 . . . Sabotage 11 | . 5 . 6 . . . Search 2 | . 1 . 1 . . . Fabricators . | . . . . . . . Repair Stations 2 | . . . 2 . . . Patch 2 | . . . 2 . . . Recycling Units 2 | . 1 . 1 . . . Tunnel 2 | . 1 . 1 . . . Scanalyzers 2 | . . . 2 . . . Extract 2 | . . . 2 . . . Garrison Access . | . . . . . . . Data Cores Recovered 1 | . . . 1 . . . Used . | . . . . . . . Hacking Detections 11 | . 3 . 8 . . . Full Trace Events 5 | . 2 . 3 . . . Feedback Events 1 | . 1 . . . . . Corruption 1 | . 1 . . . . . Feedback Blocked . | . . . . . . . Robot Schematics Acquired . | . . . . . . . Robots Built . | . . . . . . . Authchips . | . . . . . . . Time . | . . . . . . . Total Robot Build Rating . | . . . . . . . Part Schematics Acquired 3 | . . . 3 . . . Parts Built . | . . . . . . . Authchips . | . . . . . . . Time . | . . . . . . . Total Part Build Rating . | . . . . . . . Part Studies Acquired . | . . . . . . . Parts Repaired . | . . . . . . . Time . | . . . . . . . Parts Recycled . | . . . . . . . Recycled Matter . | . . . . . . . Retrieved Matter . | . . . . . . . Retrieved Components . | . . . . . . . Parts Scanalyzed . | . . . . . . . Part Schematics Acquired . | . . . . . . . Parts Damaged . | . . . . . . . Bothacking | -11 -10 -10 -9 -9 -9 -8 ------------ Run | Yrd Mat Min Mat Min Exi Min Used RIF Installer . | . . . . . . . Robots Hacked 1 | . . 1 . . . . Non-combat . | . . . . . . . Combat 1 | . . 1 . . . . Robot Hacks Applied 1 | . . 1 . . . . parse_system 1 | . . 1 . . . . Relay Couplers Released . | . . . . . . . Fabnet Peak Effective % . | . . . . . . . Robots Rewired . | . . . . . . . Allies Hacked . | . . . . . . . Hacks Repelled . | . . . . . . . Allies | -11 -10 -10 -9 -9 -9 -8 -------- Run | Yrd Mat Min Mat Min Exi Min Total Allies 6 | . . 3 1 2 . . Largest Group 3 | . . 3 3 3 2 . Highest-Rated Group 60 | . . 40 40 60 41 . Highest-Rated Ally 31 | . . 16 16 31 31 . Total Orders 116 | . . 2 5 . 107 2 STAY 12 | . . 1 2 . 9 . ROAM 1 | . . . . . . 1 FOLLOW 5 | . . 1 3 . 1 . EXPLORE 1 | . . . . . . 1 RETURN 97 | . . . . . 97 . Ally Attacks 78 | . . 5 36 2 . 35 Total Damage 1063 | . . 69 390 41 . 563 Kills 23 | . . 3 9 1 . 10 Allies Corrupted . | . . . . . . . Allies Melted . | . . . . . . . Intel | -11 -10 -10 -9 -9 -9 -8 ------- Run | Yrd Mat Min Mat Min Exi Min Active Infowar (turns) . | . . . . . . . Robot Analysis Total . | . . . . . . . Derelict Logs Recovered 4 | . . 1 . 3 . . Drone Launches 127 | . . . . . 127 . Drone Recoveries 97 | . . . . . 97 . Exploration | -11 -10 -10 -9 -9 -9 -8 ------------- Run | Yrd Mat Min Mat Min Exi Min Turns Passed 7104 | 14 952 960 2179 685 1102 1212 Spaces Moved 6643 | 29 932 942 3180 686 870 4 Core 97 | 29 68 . . . . . Treads . | . . . . . . . Legs . | . . . . . . . Wheels . | . . . . . . . Hover . | . . . . . . . Flight 6546 | . 864 942 3180 686 870 4 Fastest Speed 28 | 50 37 34 28 28 28 178 Average Speed 41 | 50 38 35 30 28 104 178 Slowest Speed 178 | 50 50 37 37 28 178 178 Overloaded Moves . | . . . . . . . Propulsion Burnouts . | . . . . . . . Robots Hopped 111 | . 12 17 57 5 20 . Potential Cave-ins . | . . . . . . . Cave-ins Triggered . | . . . . . . . Exploration Rate (%) 79 | 3 97 99 99 98 62 100 Regions Visited 6 Branch Regions 4 Pre-discovered Areas 5 | . 1 . 1 3 . . Known Exits Taken 4 | . 1 1 1 1 . . Unknown Exits Taken 2 | 1 . . . . 1 . Scrap Searched 3 | . . 1 . 2 . . Spaces Dug . | . . . . . . . Terrain Destroyed . | . . . . . . . Melee . | . . . . . . . Projectile . | . . . . . . . AOE . | . . . . . . . Terrain Rammed . | . . . . . . . Walls Destroyed . | . . . . . . . Machines Disabled . | . . . . . . . Actions | -11 -10 -10 -9 -9 -9 -8 --------- Run | Yrd Mat Min Mat Min Exi Min Total 10320 | 28 1331 1483 4078 1147 1045 1208 Wait 3230 | . 276 467 652 445 186 1204 Move 6434 | 28 908 907 3068 675 844 4 Hop 92 | . 11 17 54 5 5 . Pick Up 6 | . 1 3 2 . . . Fast Attach 17 | . 9 4 1 1 2 . Attach 1 | . . . 1 . . . Detach 2 | . . 1 . . 1 . Swap 22 | . 2 8 12 . . . Drop 16 | . 2 5 3 . 6 . Fire 274 | . 89 30 140 14 1 . Melee 1 | . . 1 . . . . Ram . | . . . . . . . Kick . | . . . . . . . Crush . | . . . . . . . Escape Stasis . | . . . . . . . Rewire . | . . . . . . . Trap 96 | . . 34 62 . . . Miscellaneous 129 | . 33 6 83 7 . . Route ------- -11/Scrapyard -10/Materials (discovered 4 exits: *Mat x2 / *Min x2) -10/Mines (discovered 3 exits: *Mat x2 / [*Sub]) -9/Materials (discovered 5 exits: *Mat x3 / *Min x2) -9/Mines (discovered 3 exits: *Mat x2 / *Exi) -9/Exiles -8/Mines (discovered 2 exits: *Mat x2) History --------- Turn | Location | Event 2 | -11/Scrapyard | Discovered new exit (range 16) 15 | -11/Scrapyard | Entered Materials 71 | -10/Materials | Discovered new exit (range 16) 96 | -10/Materials | Upgraded with Propulsion slot (x1) 96 | -10/Materials | Upgraded with Utility slot (x1) 96 | -10/Materials | Upgraded with Weapon slot (x1) 123 | -10/Materials | Discovered new exit (range 13) 270 | -10/Materials | Reached level 2 279 | -10/Materials | Upgraded with Utility slot (x1) 313 | -10/Materials | Build established: Mutant 322 | -10/Materials | Core integrity fell below 50% 339 | -10/Materials | Discovered new exit (range 6) 431 | -10/Materials | Identified exit to Materials 493 | -10/Materials | Discovered new exit (range 11) 548 | -10/Materials | Reached level 3 668 | -10/Materials | Identified exit to Mines 967 | -10/Materials | Entered Mines 969 | -10/Mines | Reached level 4 973 | -10/Mines | Discovered exit to Materials (range 11) 975 | -10/Mines | Learned Materials emergency access door positions 979 | -10/Mines | Assisted by bots powering up and referring to "LRC-V3" 1005 | -10/Mines | Met a Derelict bent on vengeance 1032 | -10/Mines | Discovered exit to Materials (range 8) 1038 | -10/Mines | Found the Drone Emporium 1039 | -10/Mines | Upgraded with Utility slot (x1) 1040 | -10/Mines | Found Prototype Device 1040 | -10/Mines | Identified Decoy Drone Bay 1136 | -10/Mines | Met a Derelict who couldn't figure out how to use a Trap Extractor 1308 | -10/Mines | Build established: Scavenger-Mutant 1642 | -10/Mines | Discovered new exit (range 6) 1667 | -10/Mines | Reached level 5 1690 | -10/Mines | Upgraded with Propulsion slot (x1) 1927 | -10/Mines | Entered Materials 1927 | -9/Materials | Accompanied by 3 allies 1929 | -9/Materials | Reached level 6 2008 | -9/Materials | Upgraded with Utility slot (x1) 2059 | -9/Materials | Discovered new exit (range 16) 2187 | -9/Materials | Reached level 7 2267 | -9/Materials | Discovered new exit (range 16) 2273 | -9/Materials | Identified exit to Materials 2327 | -9/Materials | Discovered new exit (range 16) 2403 | -9/Materials | Build established: Sprinter 2512 | -9/Materials | Reached level 8 2527 | -9/Materials | Discovered exit to Materials (range 9) 2908 | -9/Materials | Discovered new exit (range 13) 2990 | -9/Materials | Destroyed 8 combat bots 3135 | -9/Materials | Upgraded with Utility slot (x1) 3387 | -9/Materials | Reached level 9 3440 | -9/Materials | Build established: Trapper-Sprinter 3919 | -9/Materials | Sterilization system engaged 3919 | -9/Materials | Non-combat units ordered to evacuate 3977 | -9/Materials | Reached level 10 4019 | -9/Materials | Combat units ordered to evacuate 4082 | -9/Materials | Identified exit to Mines 4095 | -9/Materials | Upgraded with Propulsion slot (x1) 4106 | -9/Materials | Entered Mines 4106 | -9/Mines | Accompanied by 1 ally 4107 | -9/Mines | Assembled infested the area 4518 | -9/Mines | Learned location of Zion (-6) 4542 | -9/Mines | Discovered exit to Materials (range 10) 4552 | -9/Mines | Received a Rocket Launcher from a helpful Derelict 4630 | -9/Mines | Discovered new exit (range 5) 4638 | -9/Mines | Learned location of 1 exit from Materials 4653 | -9/Mines | Discovered exit to Materials (range 8) 4658 | -9/Mines | Joined a pair of Derelicts in attacking an 0b10 outpost 4756 | -9/Mines | Identified exit to Exiles 4791 | -9/Mines | Entered Exiles 4791 | -9/Exiles | Accompanied by 2 allies 4799 | -9/Exiles | Met 8R-AWN 4803 | -9/Exiles | Met EX-HEX 4811 | -9/Exiles | Met EX-BIN 4815 | -9/Exiles | Aligned with FarCom system 4815 | -9/Exiles | Given EX-Vault access code 4821 | -9/Exiles | Led the pair of lost Derelicts to a safe place 4822 | -9/Exiles | Opened EX-Vault 4825 | -9/Exiles | Upgraded with Utility slot (x1) 4832 | -9/Exiles | Warned to stay clear of 0b10 Research branches 4841 | -9/Exiles | Met EX-DEC 4853 | -9/Exiles | Discovered new exit (range 10) 4893 | -9/Exiles | Found Army-in-a-Box 5199 | -9/Exiles | Build established: Trapper-Mutant 5872 | -9/Exiles | Attacked by the Exiles 5893 | -9/Exiles | Left Exiles lab with Army-in-a-Box 5893 | -9/Exiles | Entered Mines 5893 | -8/Mines | Accompanied by 30 allies 5899 | -8/Mines | Reached level 11 6010 | -8/Mines | Discovered exit to Materials (range 55) 6101 | -8/Mines | Discovered exit to Materials (range 19) 7105 | -8/Mines | Self-destructed Last Messages --------------- 06194_ K-01 Serf collects debris. 06195_ U-05 Engineer builds a Wall. 06199_ K-01 Serf collects debris. 06206_ U-05 Engineer lays Concrete. 06207_ T-07 Excavator is excavating. 06207_ U-05 Engineer lays Concrete. 06210_ U-05 Engineer builds a Wall. 06213_ K-01 Serf collects debris. 06214_ U-05 Engineer builds a Wall. 06215_ T-07 Excavator is excavating. 06219_ K-01 Serf cleans the Matter Pump. 06222_ K-01 Serf collects debris. 06493_ K-01 Serf cleans the Plasma Injector. 06612_ K-01 Serf cleans the Core Extractor. 06623_ U-05 Engineer lays Concrete. 06645_ K-01 Serf cleans the Pulverizer. 06800_ U-05 Engineer builds a Wall. 06898_ K-01 Serf cleans the Pulverizer. 06915_ U-05 Engineer lays Concrete. 06917_ U-05 Engineer builds a Wall. Map ----- +----------------------------------------------------+ | ##### #??##### #??????# #?????## ##????# %## | | ????# #??????# ##?????# #????## #????# ## | | ????## ##??????# ##????#n#??### ##??##[ ## | | ?????######???????# ##???# #?## """ #####* ## | | ??????????????????# ##??# #?# """ n % #? | | ??????????????????# #??#n#?# """ #######? | | ??????????????????## t#??# #?## ##?#####? | | ???????????????????## #??# #??#### ##???????? | | ???????????????????##n ##?# #?????#### #????????? | | ???????????????????# ### #????????# #????????? | | ?????????######????# ## #????????# ######???? | | ????????## % ##??## ## #????????# u #???? | | ????????# =% #### n #????????######n##### | | ???????## [ t #?????????????# $ | | ?####### = = ######????????????## #### | | ?# %%[ n ##???????????????### ##?# | | ?# = ##???????????????## #?# | | ?# ## ##???????????????# #?# | | ?## ###### #???????????????# < ##?# | | ??# #####????## #############???# ##??# | | ### ##?????????###n ## #???# #???# | | #????????????# #???## ##???# | | #????????????### # #????####????# | | #???############ # #????????????## | | ##???# ## # #?????????????? | | # #????# ## #@ #?????????????? | | # #????# ## # """ """ #?????????????? | | # ##????# """ """ ## # """ """ #?????????????? | | ## ##?????# """ """ ##n# """ """ #?????????????? | | ?####??????# """ """ # """ #?????????????? | | ???????????# #### #?????????????? | | ???????????###########??############?????????????? | | ?????????????????????????????????????????????????? | | ?????????????????????????????????????????????????? | | ?????????????????????????????????????????????????? | | ?????????????????????????????????????????????????? | | | | | | | | | | | | | | | | | | | | | | | | | | | | | +----------------------------------------------------+ Best States ------------- Heat Dissipation 61 Energy Generation 19 Energy Capacity 250 Matter Stores 300 Matter Capacity 300 Sight Range 16 Terrain Scan Density 10 Armor Coverage 375 Propulsion Shielding 33 Utility Shielding 33 Evasion (%) 72 Targeting Accuracy 5 Trap Extractor Capacity 6 Item Schematics ----------------- Cooling System | -9/Materials | Extracted Terrain Scanner | -9/Materials | Extracted Mining Claw | -9/Materials | Extracted Robot Schematics ------------------ None Fabricated ------------ Nothing Repaired ---------- Nothing Studied --------- None Alien Tech Used ----------------- None Achievements -------------- None Challenges ------------ None RPGLIKE | -11 -10 -10 -9 -9 -9 -8 --------- Run | Yrd Mat Min Mat Min Exi Min Levels Raised 10 | . 2 2 5 . . 1 XP Earned 18743 | 3000 4447 1822 7359 371 117 1627 XP Spent 15600 | . 4050 4250 5300 . 2000 . Upgrades 24 | . 14 5 4 . 1 . Propulsion Slot 3 | . 1 1 1 . . . Utility Slot 6 | . 2 1 2 . 1 . Weapon Slot 1 | . 1 . . . . . Heat Dissipation 6 | . 6 . . . . . Energy Generation 1 | . 1 . . . . . Mass Support 3 | . 1 1 1 . . . Inventory Capacity 4 | . 2 2 . . . . Protomatter Created 1338 | . 280 37 1021 . . . Integrity Restored 2501 | . 708 111 1542 140 . . Core 1959 | . 649 111 1090 109 . . Parts 542 | . 59 . 452 31 . . Protomatter Decayed 753 | . . 7 592 53 46 55 Game ------ Seed DecoderFactoryArticulator Manual? 1 Play Time 00:52:27 Cumulative 663.9 hours Start 2026.07.15 @ 06:31:33 End 2026.07.15 @ 07:33:40 Sessions 1 Manual Loads 0 Difficulty Rogue Special Mode Winter2019/RPGLIKE Game No. 301 Rogue 147 Adventurer 154 Explorer 0 Win Type - Total 22 Types 4/5/4/3/2/1/0/1/1/1 Lore% 95 Gallery% 88 Achievement% 68 Wizard Run 0 Options --------- Layout 0 ASCII 0 Keyboard 0 Movement Numpad Keybinds 0 Fullscreen 2 Font 18/SmallcapsGlow Map View 76x50 Zoom Use 0% Tactical HUD 1 Map Filters NONE Filters NONE Steam 1 RUN: f2c5c2f3-80ad-4a3d-b325-3438eb913d23